Cogmind - Beta 14 @@@ ROGUE MODE // 2025.01.18 @ 11:12:33 Player: human Result: Destroyed by RN-H3L(R) with Subdweller Shrapnel Launcher Performance ------------- Evolutions (0) 0 Regions Visited (3) 600 Robots Destroyed (8) 40 Value Destroyed (328) 328 Prototype IDs (0) 0 Alien Tech Used (0) 0 Bonus (0) 0 TOTAL SCORE: 968 Bonus ------- None Cogmind --------- Core Integrity 0/250 Matter 99/300 Energy 100/100 System Corruption 0% Temperature Cool (0) Movement Treading (160) Location -10/Subcaves Parts ------- > --- POWER (1) -------- (None) > --- PROPULSION (2) --- Light Treads > --- UTILITY (2) ------ Small Storage Unit > --- WEAPON (2) ------- Subdweller Machine Gun Grenade Launcher > --- INVENTORY (8) ---- Ion Engine Wheel Compact Wheel Small Laser Small Laser Subdweller Laser Assault Rifle Mining Laser Peak State ------------ > --- POWER ------------ Light Nuclear Core > --- PROPULSION ------- Light Treads Light Treads > --- UTILITY ---------- Small Storage Unit Seismic Detector > --- WEAPON ----------- Subdweller Laser Subdweller Machine Gun > --- INVENTORY -------- Ion Engine Wheel Compact Wheel Small Laser Small Laser Assault Rifle Grenade Launcher Mining Laser [Rating: 11] Favorites ----------- Power Light Nuclear Core Engine Ion Engine Power Core Light Nuclear Core Propulsion Light Treads Treads Light Treads Wheel Compact Wheel Utility Small Storage Unit Device Seismic Detector Storage Small Storage Unit Weapon Subdweller Machine Gun Energy Gun Small Laser Ballistic Gun Subdweller Machine Gun Launcher Grenade Launcher Special Weapon Mining Laser Build | -11 -10 -10 -10 ------- Run | Yrd Mat Min Sub Slots Evolved . | . . . . Power . | . . . . Propulsion . | . . . . Utility . | . . . . Weapon . | . . . . Parts Attached 18 | 6 1 2 9 Power 2 | 1 . 1 . Engine 1 | 1 . . . Core 1 | . . 1 . Reactor . | . . . . Propulsion 4 | 2 . . 2 Treads 2 | . . . 2 Leg . | . . . . Wheel 2 | 2 . . . Hover . | . . . . Flight . | . . . . Utility 3 | 1 1 . 1 Device 2 | . 1 . 1 Storage 1 | 1 . . . Processor . | . . . . Hackware . | . . . . Protection . | . . . . Artifact . | . . . . Weapon 9 | 2 . 1 6 Energy Gun 2 | 1 . . 1 Energy Cannon . | . . . . Ballistic Gun 3 | 1 . . 2 Ballistic Cannon . | . . . . Launcher 2 | . . . 2 Special Weapon 2 | . . 1 1 Impact Weapon . | . . . . Slashing Weapon . | . . . . Piercing Weapon . | . . . . Special Melee Weapon . | . . . . Unidentified Prototypes . | . . . . Parts Lost 4 | . . 1 3 Power 2 | . . 1 1 Propulsion 1 | . . . 1 Utility 1 | . . . 1 Weapon . | . . . . Highest Loss Streak 3 | . . 1 3 To Critical Strikes . | . . . . Average Slot Usage (%) 98 | . 90 99 99 Engine 4 | . 14 8 . Core 9 | . . 5 13 Treads 15 | . . . 27 Wheel 12 | . 28 28 . Device 13 | . 5 14 13 Storage 14 | . 14 14 14 Energy Gun 7 | . 14 13 1 Ballistic Gun 14 | . 14 14 14 Launcher 4 | . . . 7 Special Weapon 2 | . . . 4 Peak Build Rating 11 | 6 7 9 11 Average Rating 8 | 4 6 7 10 On Entrance 5 | . 6 7 9 Naked Turns . | . . . . Heaviest Build 19 | 13 14 14 19 Greatest Support 40 | 26 26 26 40 Greatest Overweight (x) . | . . . . Average Overweight (x) . | . . . . Largest Inventory Capacity 8 | 8 8 8 8 Average Capacity 7 | 6 8 8 8 Most Carried 8 | 4 6 6 8 Average Carried 6 | 1 4 6 7 Final Capacity 8 | 8 8 8 8 Final Carried 8 | 4 6 6 8 Class Distribution -------------------- 100% | Mutant Dominant Class ---------------- Mutant | -10/Materials Mutant | -10/Mines Mutant | -10/Subcaves Resources | -11 -10 -10 -10 ----------- Run | Yrd Mat Min Sub Matter Collected 344 | 251 . 48 45 Remotely . | . . . . Salvage Created 246 | . . 86 160 Parts 18 | . . 5 13 Haulers Intercepted . | . . . . Recyclers Shooed . | . . . . Parts Field Recycled . | . . . . Retrieved Matter . | . . . . Parts Self-Destructed 11 | . . . 11 Prevented . | . . . . Kills | -11 -10 -10 -10 ------- Run | Yrd Mat Min Sub Combat Hostiles Destroyed 8 | . . 2 6 Guns 4 | . . 2 2 AOE 4 | . . . 4 Classes Destroyed 2 | . . 1 1 Grunt 3 | . . 2 1 Subdweller 5 | . . . 5 Best Kill Streak 2 | . . 2 2 Combat Bots Only 2 | . . 2 2 Max Kills in Single Turn 1 | . . 1 1 Gunslinging . | . . . . Exploded 1 | . . . 1 Melee . | . . . . Uniques/NPCs Destroyed . | . . . . Combat | -11 -10 -10 -10 -------- Run | Yrd Mat Min Sub Hostile Shots Fired 62 | . . 22 40 Missed 16 | . . 4 12 Damage Taken 906 | . . 238 668 Core 277 | . . 99 178 Absorbed by Shields . | . . . . Core Remaining (%) 100 | 100 . . . Volleys Fired 36 | . . 12 24 Largest 2 | . . 2 2 Hottest 130 | . . 100 130 Shots Fired 63 | . . 20 43 Gun 42 | . . 16 26 Cannon . | . . . . Launcher 11 | . . . 11 Special 10 | . . 4 6 Kinetic 31 | . . 8 23 Thermal 21 | . . 12 9 Explosive 11 | . . . 11 Electromagnetic . | . . . . Robot Hit Streak 4 | . . 4 4 Robot Miss Streak 2 | . . 2 2 Penetration Max . | . . . . Secondary Targets . | . . . . Shots Hit Robots 28 | . . 10 18 Core Hits 15 | . . 5 10 Critical Kills . | . . . . Critical Parts Destroyed . | . . . . Critical Strikes . | . . . . Melee Attacks . | . . . . Impact . | . . . . Slashing . | . . . . Piercing . | . . . . Sneak Attacks . | . . . . Combat Hostiles . | . . . . Follow-up Attacks . | . . . . Damage Inflicted 892 | . . 150 742 Guns 351 | . . 150 201 Cannons . | . . . . Explosions 541 | . . . 541 Melee . | . . . . Ramming . | . . . . Kinetic 252 | . . 72 180 Thermal 99 | . . 78 21 Explosive 541 | . . . 541 Electromagnetic . | . . . . Impact . | . . . . Slashing . | . . . . Piercing . | . . . . Highest Corruption . | . . . . Average Corruption . | . . . . Corruption Purged . | . . . . Corruption Blocked . | . . . . Overload Shots . | . . . . Overflow Damage 1 | . . . 1 Projectiles . | . . . . Explosions 1 | . . . 1 Melee . | . . . . Knockbacks . | . . . . Impact . | . . . . Kinetic . | . . . . Secondary . | . . . . Self-Inflicted Damage 4 | . . . 4 Shots 1 | . . . 1 Rammed . | . . . . Targets Rammed . | . . . . Kicked . | . . . . Crushed . | . . . . Highest Temperature 115 | . . 115 1 Average Temperature 59 | . . 62 1 Received Heat Transfer 258 | . . 132 126 Siege Activations . | . . . . Robots Corrupted . | . . . . Combat Hostiles . | . . . . Parts Fried . | . . . . Impact Corruptions . | . . . . Robots Melted . | . . . . Combat Hostiles . | . . . . Parts Melted 1 | . . . 1 Heat Transferred 200 | . . 175 25 Parts Sabotaged . | . . . . Parts Stolen . | . . . . Parts Stripped . | . . . . Power Chain Reactions . | . . . . Alert | -11 -10 -10 -10 ------- Run | Yrd Mat Min Sub Peak Influence 41 | . 5 41 . Initial 1 | . . 1 . Average 7 | . 3 9 . Maximum Alert Level . | . . . . Low Security (%) 100 | 100 100 100 . Level 1 . | . . . . Level 2 . | . . . . Level 3 . | . . . . Level 4 . | . . . . Level 5 . | . . . . High Security . | . . . . Max Security . | . . . . Squads Dispatched 1 | . 1 . . Investigation . | . . . . Extermination . | . . . . Reinforcement 1 | . 1 . . Assault . | . . . . Garrison . | . . . . Intercept . | . . . . Searches Triggered . | . . . . Construction Impeded . | . . . . Haulers Reinforced . | . . . . Active Scanning Responses . | . . . . Cargo Convoy Interrupts . | . . . . Stealth | -11 -10 -10 -10 --------- Run | Yrd Mat Min Sub Distress Signals . | . . . . Communications Jammed . | . . . . Distress Signals . | . . . . Times Spotted 11 | . 1 2 8 Peak Tracking Total 3 | . 1 2 3 Tactical Retreats . | . . . . Traps | -11 -10 -10 -10 ------- Run | Yrd Mat Min Sub Traps Triggered . | . . . . Indirectly . | . . . . Trap Hack Attempts . | . . . . Triggered . | . . . . Disarmed . | . . . . Reprogrammed . | . . . . Reused . | . . . . Traps Extracted . | . . . . Installed 4 | . . 4 . Triggered 3 | . . . 3 Machines | -11 -10 -10 -10 ---------- Run | Yrd Mat Min Sub Machines Disabled . | . . . . Max in Single Turn . | . . . . Machines Repaired . | . . . . Machines Dismantled . | . . . . Machines Sabotaged . | . . . . Overloaded Fab Kills . | . . . . Hacking | -11 -10 -10 -10 --------- Run | Yrd Mat Min Sub Machines Accessed 4 | . 4 . . Terminals 4 | . 4 . . Fabricators . | . . . . Repair Stations . | . . . . Recycling Units . | . . . . Scanalyzers . | . . . . Garrison Access . | . . . . Total Hacks 6 | . 6 . . Successful 2 | . 2 . . Failed 4 | . 4 . . Catastrophic 3 | . 3 . . Database Lockouts . | . . . . Manual 6 | . 6 . . Terminals 6 | . 6 . . Fabricators . | . . . . Repair Stations . | . . . . Recycling Units . | . . . . Scanalyzers . | . . . . Garrison Access . | . . . . Terminal Hacks 1 | . 1 . . Branch Access Points 1 | . 1 . . Fabricator Hacks . | . . . . Repair Station Hacks . | . . . . Recycling Unit Hacks . | . . . . Scanalyzer . | . . . . Garrison Access Hacks . | . . . . Unauthorized Hacks 1 | . 1 . . Terminals 1 | . 1 . . Botnet 1 | . 1 . . Fabricators . | . . . . Repair Stations . | . . . . Recycling Units . | . . . . Scanalyzers . | . . . . Garrison Access . | . . . . Data Cores Recovered . | . . . . Used . | . . . . Hacking Detections 3 | . 3 . . Full Trace Events . | . . . . Feedback Events . | . . . . Feedback Blocked . | . . . . Robot Schematics Acquired . | . . . . Robots Built . | . . . . Authchips . | . . . . Time . | . . . . Total Robot Build Rating . | . . . . Part Schematics Acquired . | . . . . Parts Built . | . . . . Authchips . | . . . . Time . | . . . . Total Part Build Rating . | . . . . Parts Repaired . | . . . . Time . | . . . . Parts Recycled . | . . . . Recycled Matter . | . . . . Retrieved Matter . | . . . . Retrieved Components . | . . . . Parts Scanalyzed . | . . . . Part Schematics Acquired . | . . . . Parts Damaged . | . . . . Bothacking | -11 -10 -10 -10 ------------ Run | Yrd Mat Min Sub Used RIF Installer . | . . . . Robots Hacked . | . . . . Non-combat . | . . . . Combat . | . . . . Robot Hacks Applied . | . . . . Relay Couplers Released . | . . . . Fabnet Peak Effective % . | . . . . Robots Rewired . | . . . . Allies Hacked . | . . . . Hacks Repelled . | . . . . Allies | -11 -10 -10 -10 -------- Run | Yrd Mat Min Sub Total Allies . | . . . . Largest Group . | . . . . Highest-Rated Group . | . . . . Highest-Rated Ally . | . . . . Total Orders . | . . . . Ally Attacks . | . . . . Total Damage . | . . . . Kills . | . . . . Allies Corrupted . | . . . . Allies Melted . | . . . . Intel | -11 -10 -10 -10 ------- Run | Yrd Mat Min Sub Robot Analysis Total . | . . . . Derelict Logs Recovered 3 | . . 2 1 Drone Launches . | . . . . Drone Recoveries . | . . . . Exploration | -11 -10 -10 -10 ------------- Run | Yrd Mat Min Sub Turns Passed 1457 | 52 135 477 793 Spaces Moved 1051 | 45 146 425 435 Core 5 | 5 . . . Treads 435 | . . . 435 Legs . | . . . . Wheels 611 | 40 146 425 . Hover . | . . . . Flight . | . . . . Fastest Speed 50 | 50 90 90 160 Average Speed 118 | 86 90 90 160 Slowest Speed 160 | 100 90 90 160 Overloaded Moves . | . . . . Propulsion Burnouts . | . . . . Robots Hopped . | . . . . Cave-ins Triggered . | . . . . Exploration Rate (%) 40 | 4 28 92 38 Regions Visited 3 Branch Regions 2 Pre-discovered Areas . | . . . . Known Exits Taken 1 | . 1 . . Unknown Exits Taken 2 | 1 . 1 . Scrap Searched 1 | . . 1 . Spaces Dug . | . . . . Terrain Destroyed 38 | . . . 38 Melee . | . . . . Projectile . | . . . . AOE 38 | . . . 38 Terrain Rammed . | . . . . Walls Destroyed . | . . . . Machines Disabled . | . . . . Actions | -11 -10 -10 -10 --------- Run | Yrd Mat Min Sub Total 1165 | 54 148 490 473 Wait 49 | . . 48 1 Move 1048 | 44 145 424 435 Hop . | . . . . Pick Up 8 | 4 2 . 2 Fast Attach 9 | 6 1 1 1 Attach . | . . . . Detach . | . . . . Swap 9 | . . 1 8 Drop 2 | . . . 2 Fire 36 | . . 12 24 Melee . | . . . . Ram . | . . . . Kick . | . . . . Crush . | . . . . Escape Stasis . | . . . . Rewire . | . . . . Trap 4 | . . 4 . Miscellaneous . | . . . . Route ------- -11/Scrapyard -10/Materials -10/Mines (discovered 4 exits: [*Mat x2] / [*Exi] / [*Sub]) -10/Subcaves History --------- Turn | Location | Event 31 | -11/Scrapyard | Discovered new exit (range 14) 53 | -11/Scrapyard | Entered Materials 115 | -10/Materials | Identified exit to Mines 188 | -10/Materials | Entered Mines 233 | -10/Mines | Found a hidden stash of uninstalled traps 252 | -10/Mines | Learned location of 1 exit from Materials 306 | -10/Mines | Build established: Mutant 329 | -10/Mines | Learned location of 1 exit from Materials 349 | -10/Mines | Discovered new exit (range 12) 496 | -10/Mines | Discovered new exit (range 16) 521 | -10/Mines | Deemed a non-threat by the Exiles lab entrance 521 | -10/Mines | Discovered new exit (range 5) 663 | -10/Mines | Discovered new exit (range 3) 665 | -10/Mines | Entered Subcaves 983 | -10/Subcaves | Core integrity fell below 50% 1321 | -10/Subcaves | Learned 2 Materials zone layouts 1453 | -10/Subcaves | Core integrity fell below 20% 1458 | -10/Subcaves | Destroyed by RN-H3L(R) with Subdweller Shrapnel Launcher Last Messages --------------- 01060_ The unstable cave ceiling collapses. 01060_ 20-1PQ(R) destroyed. 01069_ Subatomizers dissect the Sub. Monowheel. 01089_ Acquired 9 matter. 01285_ Dropped Sub. Machine Gun. 01321_ Acquired derelict log, extracted data. Data stored: Materials zone layouts (x2). 01340_ G-47 Trooper destroyed. 01421_ Dropped Seismic Detector. 01422_ Subatomizers dissect the Sub. Power Source. 01422_ Acquired Sensor Array. 01444_ Subatomizers dissect the Sub. Monowheel. 01444_ Sensor Array destroyed. 01446_ Lgt. Nuclear Core destroyed. 01446_ Destroyed Lgt. Nuclear Core. 01448_ Lgt. Treads destroyed. 01454_ XE-KU5(R) destroyed. 01456_ Subatomizers dissect the Disposable Heat Sink. Map ----- +----------------------------------------------------+ | ?????????????????????????????????????????????????? | | ?????????????????????????????????????????????????? | | ?????????????????????????????????????????????????? | | ?????????????????????????????????????????????????? | | ?????????????????????????????????????????????????? | | ?????????????????????????????????????????????????? | | ?????????????????????????????????????????????????? | | ?????????????????????????????????????????????????? | | ?????????????????????????????????????????????????? | | ?????????????????????????????????????????????????? | | ?????????????????????????????????????????????????? | | ?????????????????????????????????????????????????? | | ??????????????????????????????? ????????????????? | | ?????????????????????????##??? #??????????????? | | ???????????????????????## ##?# ????????????? | | ??????????????????????? ## ????????????? | | ???????????????????????# #????????????? | | ???????????????????????# #????????????? | | ???????????????????????# ?????????????## | | ???????????????????????# ???????###????# | | ????????????????#####?## ???????## ###?# | | ???????????????##"""### #???????## #?# | | ??????????????##""" #??????## ??# | | ?????????? ### #??????# #??# | | ?????????# #???????# #### | | ???????? R & @ ;#??????????# ## | | ???????? !%& ###???????????# | | ????????? |*R ;;#?????########## # | | ??????????? # ;;#???### ### ## | | ????????????## ;; #### ##? | | ?????????????## ## ;; #### ##?? | | ??????????????#???##;; ## #??# ###??? | | ???????????????????### #?## #### #????? | | ????????????????????# #?## #????? | | ???????????????????## ### ###????? | | ????????????????#### ## #??????? | | ???????????????# ## #?????? | | ???????????????### ## ##?????? | | ?????????????????## ########### #??????? | | ??????????????????############?????????####??????? | | ?????????????????????????????????????????????????? | | ?????????????????????????????????????????????????? | | ?????????????????????????????????????????????????? | | ?????????????????????????????????????????????????? | | ?????????????????????????????????????????????????? | | ?????????????????????????????????????????????????? | | ?????????????????????????????????????????????????? | | ?????????????????????????????????????????????????? | | ?????????????????????????????????????????????????? | | ?????????????????????????????????????????????????? | +----------------------------------------------------+ Best States ------------- Heat Dissipation 25 Energy Generation 14 Energy Capacity 250 Matter Stores 300 Matter Capacity 300 Sight Range 16 Robot Scan Range 14 Terrain Scan Density 10 Evasion (%) 42 Recoil Reduction 2 Item Schematics ----------------- None Robot Schematics ------------------ None Fabricated ------------ Nothing Alien Tech Used ----------------- None Achievements -------------- None Challenges ------------ None Game ------ Seed ContainmentIonicBank Manual? 0 Play Time 00:15:37 Cumulative 75.8 hours Start 2025.01.18 @ 10:57:59 End 2025.01.18 @ 11:12:33 Sessions 1 Manual Loads 0 Difficulty Rogue Special Mode None Game No. 61 Rogue 61 Adventurer 0 Explorer 0 Win Type - Total 0 Types 0/0/0/0/0/0/0/0/0 Lore% 22 Gallery% 40 Achievement% 32 Wizard Run 0 Options --------- Layout 1 ASCII 0 Keyboard 0 Movement Mouse Keybinds 0 Fullscreen 1 Font 24/Smallcaps Map View 50x35 Zoom Use 0% Tactical HUD 1 Map Filters NONE Filters NONE Steam 1 RUN: 984bf619-1ec5-4080-92ab-6d7d79ac9915